bitfinex/quotes_SOLUSD_20240829
["timestamp","ask_amount","ask_price","bid_price","bid_amount"]
[1724949127850,0.25098,145.65,145.63,15.6324]
[1724949129337,45.0,145.66,145.63,15.6324]
[1724949129539,31.73135087,145.71,145.63,15.6324]
[1724949129760,31.73135087,145.73,145.63,15.6324]
[1724949130364,31.73135087,145.71,145.63,15.6324]
[1724949130754,38.59425087,145.71,145.63,15.6324]
[1724949131354,0.25098,145.7,145.63,15.6324]
[1724949131558,45.25098,145.7,145.63,15.6324]
[1724949133864,31.73135087,145.71,145.63,15.6324]
[1724949134048,31.73135087,145.74,145.63,15.6324]
[1724949134245,31.73135087,145.74,145.64,20.0]
[1724949134955,31.73135087,145.74,145.65,6.5296]
[1724949135157,31.73135087,145.74,145.66,20.0]
[1724949135353,0.12549,145.73,145.66,20.0]
[1724949135555,45.12549,145.73,145.66,20.0]
[1724949135939,51.98749,145.73,145.66,20.0]
[1724949136143,0.12549,145.72,145.66,20.0]
[1724949137563,6.98809,145.72,145.65,6.5296]
[1724949137871,51.98849,145.71,145.65,6.5296]
[1724949138065,6.98889,145.7,145.65,6.5296]
[1724949138369,45.12549,145.69,145.65,6.5296]
[1724949138555,0.12549,145.68,145.65,6.5296]
[1724949141175,43.25098,145.69,145.65,6.5296]
[1724949142067,31.73135087,145.66,145.59,21.6512]
[1724949143055,38.59575087,145.68,145.59,21.6512]
[1724949143256,45.25098,145.67,145.59,21.6512]
[1724949144367,52.11578,145.67,145.59,21.6512]
[1724949144562,45.25098,145.67,145.59,21.6512]
[1724949144766,0.25098,145.67,145.59,21.6512]
[1724949145170,0.25098,145.68,145.59,21.6512]
[1724949146076,76.98233087,145.68,145.59,21.6512]
[1724949146277,0.12549,145.67,145.59,21.6512]
[1724949146509,6.99039,145.67,145.59,21.6512]
[1724949146774,45.0,145.66,145.59,21.6512]
[1724949146984,45.12549,145.66,145.59,21.6512]
[1724949147171,0.12549,145.65,145.59,21.6512]
[1724949148871,0.12549,145.66,145.59,21.6512]
[1724949149063,0.12549,145.67,145.59,21.6512]
[1724949149265,45.25098,145.68,145.59,21.6512]
[1724949150582,45.25098,145.68,145.6,16.6371]
[1724949150879,6.8624,145.72,145.62,16.6371]
[1724949151082,31.73135087,145.74,145.63,26.3307]
[1724949151255,31.73135087,145.74,145.64,15.9777]
[1724949151455,6.8623,145.73,145.64,15.9777]
[1724949152079,38.59385087,145.72,145.64,15.9777]
[1724949152286,0.12549,145.71,145.64,15.9777]
[1724949152460,45.12549,145.71,145.64,15.9777]
[1724949153364,31.85684087,145.7,145.64,15.9777]
[1724949153562,45.12549,145.69,145.64,15.9777]
[1724949153885,0.12549,145.68,145.64,15.9777]
[1724949154579,6.8651,145.67,145.64,15.9777]
[1724949154785,45.25098,145.66,145.64,15.9777]
[1724949155476,0.25098,145.66,145.64,15.9777]
[1724949155675,0.12549,145.66,145.64,15.9777]
[1724949155976,45.0,145.67,145.64,15.9777]
[1724949156280,45.12549,145.68,145.64,15.9777]
[1724949156665,0.12549,145.68,145.64,15.9777]
[1724949156870,0.25098,145.68,145.64,15.9777]
[1724949157968,45.0,145.69,145.64,15.9777]
[1724949160073,0.25098,145.7,145.64,15.9777]
[1724949161383,0.12549,145.7,145.64,15.9777]
[1724949161976,45.0,145.71,145.64,15.9777]
[1724949162185,45.12549,145.72,145.65,20.0]
[1724949162371,0.12549,145.71,145.65,20.0]
[1724949163680,0.12549,145.71,145.64,15.9777]
[1724949163879,0.12549,145.71,145.65,20.0]
[1724949165682,0.12549,145.71,145.66,6.2237]
[1724949167884,6.98859,145.71,145.66,6.2237]
[1724949168084,45.12549,145.7,145.66,6.2237]
[1724949168389,0.12549,145.69,145.66,6.2237]
[1724949171287,6.8644,145.68,145.66,6.2237]
[1724949171497,52.11578,145.67,145.66,6.2237]
[1724949171676,45.25098,145.67,145.66,6.2237]
[1724949173595,45.25098,145.67,145.64,15.9777]
[1724949174196,52.11588,145.67,145.64,15.9777]
[1724949175392,45.25098,145.67,145.64,15.9777]
[1724949176204,6.8657,145.65,145.64,15.9777]
[1724949176402,45.25098,145.65,145.64,15.9777]
[1724949178004,45.25098,145.65,145.63,6.5088]
[1724949178200,0.12549,145.64,145.63,6.5088]
[1724949178708,45.25098,145.64,145.6,21.8109]
[1724949178909,0.25098,145.64,145.6,21.8109]
[1724949179084,31.73135087,145.68,145.6,21.8109]
[1724949179281,45.25098,145.67,145.6,21.8109]
[1724949179688,0.12549,145.67,145.6,21.8109]
[1724949180187,0.12549,145.68,145.6,34.51057576]
[1724949181310,0.25098,145.68,145.6,34.51057576]
[1724949181907,45.25098,145.68,145.6,34.51057576]
[1724949183217,6.8657,145.66,145.6,21.8109]
[1724949183382,45.25098,145.65,145.6,21.8109]
[1724949183712,0.25098,145.65,145.6,21.8109]
[1724949184036,12.69967576,145.69,145.6,34.51057576]
[1724949184311,45.25098,145.68,145.6,34.51057576]
[1724949185101,0.25098,145.68,145.62,33.99917576]
[1724949185295,6.8634,145.7,145.62,33.99917576]
[1724949185296,0.25098,145.69,145.62,33.99917576]
[1724949186785,45.25098,145.69,145.62,33.99917576]
[1724949187197,0.25098,145.69,145.63,20.0]
[1724949187712,45.0,145.7,145.63,20.0]
[1724949187904,19.56087576,145.75,145.66,12.69967576]
[1724949188104,6.8609,145.76,145.68,15.3355]
[1724949188422,6.8617,145.74,145.68,15.3355]
[1724949188905,6.8628,145.72,145.68,15.3355]
[1724949189105,12.69967576,145.71,145.68,15.3355]
[1724949189811,0.12549,145.7,145.68,15.3355]
[1724949190009,45.25098,145.71,145.68,15.3355]
[1724949190307,52.11398,145.71,145.68,15.3355]
[1724949193916,45.25098,145.71,145.68,15.3355]
[1724949194819,52.11398,145.71,145.68,15.3355]
[1724949194989,12.69967576,145.7,145.68,15.3355]
[1724949195324,52.11528,145.69,145.65,6.6596]
[1724949195521,12.69967576,145.68,145.65,6.6596]
[1724949195820,45.25098,145.67,145.65,6.6596]
[1724949198916,45.12549,145.67,145.65,6.6596]
[1724949199121,12.69967576,145.72,145.65,6.6596]
[1724949199699,19.56227576,145.72,145.65,6.6596]
[1724949200114,12.69967576,145.74,145.65,6.6596]
[1724949200424,12.69967576,145.7,145.65,6.6596]
[1724949200617,19.56397576,145.68,145.65,6.6596]
[1724949200827,6.8648,145.67,145.65,6.6596]
[1724949200999,45.25098,145.66,145.65,6.6596]
[1724949202218,45.25098,145.66,145.64,16.5434]
[1724949202425,57.95065576,145.66,145.64,16.5434]
[1724949203409,64.81595576,145.66,145.64,16.5434]
[1724949203827,57.95065576,145.66,145.64,16.5434]
[1724949204001,57.95065576,145.66,145.61,6.3372]
[1724949204330,12.69967576,145.63,145.6,16.6384]
[1724949204508,45.12549,145.62,145.6,16.6384]
[1724949204702,0.12549,145.61,145.6,16.6384]
[1724949206327,6.99319,145.61,145.57,6.3372]
[1724949206550,45.12549,145.6,145.57,6.3372]
[1724949206836,0.12549,145.59,145.57,6.3372]
[1724949207615,45.12549,145.6,145.57,6.3372]
[1724949208517,0.12549,145.59,145.57,6.3372]
[1724949209819,45.12549,145.6,145.57,6.3372]
[1724949210209,0.12549,145.59,145.57,6.3372]
[1724949212910,31.77977753,145.63,145.57,6.3372]
[1724949213120,31.77977753,145.65,145.57,6.3372]
[1724949213326,6.8665,145.64,145.57,6.3372]
[1724949213916,31.77977753,145.65,145.57,6.3372]
[1724949214116,6.8668,145.63,145.57,6.3372]
[1724949214437,6.8668,145.63,145.52,31.77977753]
[1724949214438,38.64887753,145.58,145.49,29.43578967]
[1724949214611,38.64887753,145.58,145.49,22.2773]
[1724949215135,6.8698,145.57,145.49,22.2773]
[1724949215338,45.25098,145.56,145.49,22.2773]
[1724949215513,45.0,145.57,145.49,22.2773]
[1724949215827,45.12549,145.58,145.5,20.0]
[1724949216010,0.12549,145.57,145.5,20.0]
[1724949216210,6.99529,145.57,145.49,22.2773]
[1724949216406,45.12549,145.56,145.5,20.0]
[1724949216832,0.12549,145.55,145.49,22.2773]
[1724949218236,6.99599,145.55,145.49,22.2773]
[1724949218441,45.12549,145.54,145.49,22.2773]
[1724949218737,0.12549,145.54,145.49,22.2773]
[1724949218933,45.12549,145.55,145.49,22.2773]
[1724949219921,0.12549,145.55,145.49,22.2773]
[1724949220237,0.25098,145.55,145.49,22.2773]
[1724949221322,0.12549,145.55,145.49,22.2773]
[1724949221835,6.8689,145.59,145.49,54.05707753]
[1724949222023,6.867,145.63,145.52,47.32007753]
[1724949222219,6.867,145.63,145.53,20.0]
[1724949222838,6.8672,145.62,145.53,20.0]
[1724949223145,31.77977753,145.65,145.53,20.0]
[1724949223146,6.8665,145.64,145.54,53.55637753]
[1724949223324,6.866,145.65,145.55,20.0]
[1724949224020,6.8663,145.64,145.55,20.0]
[1724949224544,6.867,145.63,145.55,20.0]
[1724949224728,6.8672,145.62,145.55,20.0]
[1724949224928,45.12549,145.61,145.55,20.0]
[1724949225142,0.12549,145.6,145.55,20.0]
[1724949225319,0.12549,145.6,145.54,21.7766]
[1724949226341,45.12549,145.61,145.54,21.7766]
[1724949227450,0.12549,145.61,145.54,21.7766]
[1724949227632,0.25098,145.61,145.54,21.7766]
[1724949229320,0.12549,145.61,145.54,21.7766]
[1724949229742,6.8656,145.66,145.55,47.45107753]
[1724949229933,6.8656,145.66,145.57,6.2924]
[1724949230130,6.8657,145.65,145.57,6.2924]
[1724949230323,48.94277753,145.67,145.57,6.2924]
[1724949230524,6.8658,145.65,145.57,6.2924]
[1724949231253,45.25098,145.64,145.57,6.2924]
[1724949233243,52.11728,145.64,145.57,6.2924]
[1724949233445,45.25098,145.64,145.57,6.2924]
[1724949235041,6.8672,145.62,145.57,6.2924]
[1724949235224,45.25098,145.61,145.57,6.2924]
[1724949235427,52.11858,145.61,145.57,6.2924]
[1724949235732,45.25098,145.61,145.57,6.2924]
[1724949236951,0.25098,145.61,145.57,6.2924]
[1724949238134,45.0,145.62,145.57,6.2924]
[1724949238851,45.0,145.63,145.57,6.2924]
[1724949239051,45.0,145.64,145.57,6.2924]
[1724949239238,6.867,145.63,145.57,6.2924]
[1724949239439,45.0,145.62,145.57,6.2924]
[1724949240048,51.8672,145.62,145.57,6.2924]
[1724949240240,0.25098,145.61,145.57,6.2924]
[1724949241154,45.0,145.62,145.57,6.2924]
[1724949247360,45.25098,145.61,145.57,6.2924]
[1724949247531,6.869,145.58,145.57,6.2924]
[1724949247729,0.25098,145.61,145.57,6.2924]
[1724949247950,6.8682,145.6,145.57,6.2924]
[1724949248155,19.58415358,145.6,145.57,6.2924]
[1724949249236,19.58495358,145.58,145.55,15.6713]
[1724949249563,0.12549,145.59,145.55,15.6713]
[1724949249879,12.71595358,145.58,145.55,15.6713]
[1724949250165,6.8691,145.58,145.55,15.6713]
[1724949250366,83.92107837,145.59,145.55,15.6713]
[1724949250954,0.12549,145.59,145.55,15.6713]
[1724949251158,6.8676,145.62,145.55,15.6713]
[1724949251343,45.25098,145.61,145.55,15.6713]
[1724949251543,0.12549,145.61,145.55,15.6713]
[1724949254657,31.92698837,145.61,145.55,15.6713]
[1724949254859,45.12549,145.6,145.55,15.6713]
[1724949255669,31.92698837,145.59,145.55,15.6713]
[1724949255842,45.12549,145.58,145.55,15.6713]
[1724949256039,0.12549,145.59,145.55,15.6713]
[1724949256243,0.25098,145.59,145.55,15.6713]
[1724949257839,6.8694,145.58,145.55,15.6713]
[1724949258042,7.11958,145.59,145.55,15.6713]
[1724949258256,0.25098,145.59,145.55,15.6713]
[1724949258446,35.73377763,145.86,145.55,15.6713]
[1724949258447,0.5,145.65,145.55,15.6713]
[1724949258658,6.8663,145.64,145.55,15.6713]
[1724949258848,6.8667,145.63,145.55,15.6713]
[1724949259253,31.80149837,145.61,145.55,15.6713]
[1724949259475,6.8673,145.62,145.55,15.6713]
[1724949259850,38.66869837,145.62,145.55,15.6713]
[1724949260365,52.11878,145.61,145.55,15.6713]
[1724949260750,6.8682,145.6,145.55,15.6713]
[1724949261087,45.25098,145.59,145.55,15.6713]
[1724949262067,52.11968,145.59,145.55,15.6713]
[1724949263971,31.80149837,145.58,145.55,15.6713]
[1724949264269,45.25098,145.57,145.55,15.6713]
[1724949264445,31.80149837,145.56,145.54,6.0038]
[1724949264647,31.80149837,145.56,145.51,15.4725]
[1724949265247,45.12549,145.55,145.51,15.4725]
[1724949265450,52.12148,145.55,145.51,15.4725]
[1724949266151,45.12549,145.55,145.51,15.4725]
[1724949266364,45.0,145.55,145.51,15.4725]
[1724949266561,6.87,145.56,145.51,15.4725]
[1724949266745,0.12549,145.57,145.51,15.4725]
[1724949266955,6.8701,145.56,145.51,15.4725]
[1724949268677,31.80149837,145.56,145.51,15.4725]
[1724949268879,45.25098,145.55,145.51,15.4725]
[1724949269254,0.12549,145.55,145.51,15.4725]
[1724949269576,6.8686,145.59,145.51,15.4725]
[1724949270876,0.25098,145.58,145.51,15.4725]
[1724949271067,45.25098,145.58,145.51,15.4725]
[1724949273967,12.72168906,145.57,145.51,15.4725]
[1724949274280,12.72168906,145.59,145.51,15.4725]
[1724949274473,45.0,145.58,145.51,15.4725]
[1724949275275,19.59028906,145.59,145.51,15.4725]
[1724949275451,12.72168906,145.59,145.51,15.4725]
[1724949275875,1.19532548,145.64,145.53,15.9548]
[1724949276059,12.72168906,145.63,145.54,6.4872]
[1724949276268,6.8668,145.63,145.55,15.9548]
[1724949277574,6.8672,145.62,145.55,15.9548]
[1724949277780,12.72168906,145.64,145.55,15.9548]
[1724949278087,51.8668,145.63,145.55,15.9548]
[1724949278767,45.0,145.63,145.55,28.67648906]
[1724949279084,45.0,145.63,145.56,21.3933]
[1724949281779,6.8654,145.66,145.57,21.7245]
[1724949281988,6.8651,145.67,145.58,47.06348109]
[1724949282202,31.77068109,145.7,145.6,15.2928]
[1724949282481,1.19470362,145.72,145.6,15.2928]
[1724949282482,6.8633,145.71,145.62,15.8201]
[1724949282686,6.8634,145.7,145.62,15.8201]
[1724949283556,31.77068109,145.74,145.63,6.5821]
[1724949283760,6.8623,145.73,145.64,15.2026]
[1724949284791,6.8626,145.72,145.64,15.2026]
[1724949285362,6.98759,145.73,145.64,15.2026]
[1724949285794,6.8625,145.72,145.64,15.2026]
[1724949286488,45.12549,145.71,145.64,15.2026]
[1724949286877,0.12549,145.73,145.65,20.0]
[1724949287078,45.25098,145.73,145.66,6.5821]
[1724949287272,45.0,145.72,145.67,15.2026]
[1724949287474,0.25098,145.73,145.67,15.2026]
[1724949287707,6.8611,145.75,145.67,15.2026]
[1724949288173,6.8615,145.74,145.67,15.2026]
[1724949288770,0.25098,145.73,145.67,15.2026]
[1724949288970,45.25098,145.73,145.67,15.2026]
[1724949289675,6.8615,145.74,145.67,15.2026]
[1724949289878,6.8611,145.75,145.67,15.2026]
[1724949290872,48.92008109,145.78,145.67,15.2026]
[1724949290873,28.74808445,145.78,145.67,15.2026]
[1724949291094,65.25098,145.77,145.69,15.6037]
[1724949291291,20.25098,145.77,145.71,6.8628]
[1724949291606,20.25098,145.77,145.69,15.6037]
[1724949291607,0.25098,145.77,145.72,6.8624]
[1724949292875,6.861,145.75,145.7,6.863]
[1724949293078,6.861,145.75,145.71,6.8628]
[1724949293490,31.77068109,145.74,145.69,15.6037]
[1724949293797,45.25098,145.73,145.69,15.6037]
[1724949294494,6.8626,145.72,145.69,15.6037]
[1724949294698,45.0,145.71,145.69,15.6037]
[1724949294894,51.8631,145.71,145.69,15.6037]
[1724949295090,6.8634,145.7,145.69,15.6037]
[1724949295295,51.98889,145.7,145.69,15.6037]
[1724949295596,52.11438,145.7,145.69,15.6037]
[1724949295976,45.25098,145.7,145.69,15.6037]
[1724949296187,6.8638,145.69,145.68,6.0931]
[1724949296389,6.8638,145.69,145.47,389.3]
[1724949296390,62.41128,145.69,145.64,6.4048]
[1724949296629,32.02166109,145.68,145.64,6.4048]
[1724949296779,6.8653,145.66,145.64,6.4048]
[1724949298501,6.8657,145.65,145.64,6.4048]
[1724949298675,52.11668,145.65,145.64,6.4048]
[1724949299080,45.25098,145.65,145.64,6.4048]
[1724949300698,6.8648,145.67,145.64,6.4048]
[1724949300907,0.12549,145.66,145.64,6.4048]
[1724949301104,45.25098,145.66,145.64,6.4048]
[1724949301603,6.8639,145.69,145.64,6.4048]
[1724949301804,17.1565,145.72,145.66,6.8649]
[1724949301805,6.863,145.71,145.66,6.8649]
[1724949301982,6.8628,145.72,145.67,6.8644]
[1724949302303,31.77068109,145.74,145.64,6.4048]
[1724949302490,6.8624,145.72,145.67,6.8647]
[1724949302999,6.8619,145.74,145.69,22.3492]
[1724949303302,6.8619,145.74,145.69,15.4858]
[1724949303303,6.863,145.71,145.69,15.4858]
[1724949304294,45.25098,145.7,145.69,15.4858]
[1724949304491,6.8622,145.73,145.69,15.4858]
[1724949304682,6.8616,145.74,145.69,22.3496]
[1724949304886,6.8611,145.75,145.69,22.3496]
[1724949305105,258.0,145.76,145.7,6.1879]
[1724949305488,258.0,145.76,145.7,13.0512]
[1724949305684,289.77068109,145.76,145.7,6.1879]
[1724949306005,6.862,145.73,145.7,6.1879]
[1724949306385,45.25098,145.72,145.7,6.1879]
[1724949306787,45.25098,145.72,145.69,15.4858]
[1724949307293,0.25098,145.72,145.69,22.3495]
[1724949307499,45.0,145.73,145.69,22.3495]
[1724949307699,45.0,145.73,145.7,6.8634]
[1724949307899,45.12549,145.74,145.7,6.8634]
[1724949308194,31.77068109,145.73,145.69,15.4858]
[1724949308385,45.12549,145.72,145.69,15.4858]
[1724949308590,51.98799,145.72,145.69,15.4858]
[1724949309287,0.12549,145.71,145.69,15.4858]
[1724949309505,45.12549,145.72,145.69,15.4858]
[1724949309717,45.12549,145.72,145.69,22.3496]
[1724949309896,0.12549,145.72,145.69,22.3496]
[1724949310094,0.25098,145.72,145.69,22.3496]
[1724949311093,0.25098,145.72,145.69,15.4858]
[1724949311393,45.0,145.73,145.69,15.4858]
[1724949311394,45.0,145.73,145.69,22.3496]
[1724949311594,45.0,145.73,145.7,6.8633]
[1724949311793,45.12549,145.74,145.7,6.8633]
[1724949312018,0.25098,145.73,145.7,6.8633]
[1724949313103,0.25098,145.73,145.69,15.4858]
[1724949313421,0.25098,145.73,145.7,6.8633]
[1724949313713,6.8609,145.76,145.72,6.663]
[1724949314020,31.77068109,145.79,145.73,6.8615]
[1724949314594,6.8592,145.79,145.74,6.8615]
[1724949315622,6.8592,145.79,145.72,6.663]
[1724949315623,1.19404474,145.82,145.75,23.2279]
[1724949315832,6.8577,145.83,145.75,16.367]
[1724949316122,31.77068109,145.86,145.78,6.8595]
[1724949316993,6.8572,145.84,145.78,6.8595]
[1724949317294,6.8575,145.83,145.78,6.8595]
[1724949317807,31.77068109,145.84,145.78,6.8595]
[1724949318011,0.12549,145.83,145.79,6.5048]
[1724949318315,6.98289,145.83,145.79,6.5048]
[1724949318502,6.98279,145.83,145.79,6.5048]
[1724949319102,45.12549,145.82,145.79,6.5048]
[1724949319419,45.12549,145.82,145.76,6.5048]
[1724949319420,45.12549,145.81,145.76,6.5048]
[1724949319614,45.0,145.81,145.76,6.5048]
[1724949319816,0.12549,145.8,145.76,13.3652]
[1724949319997,45.0,145.81,145.78,6.8595]
[1724949320326,0.12549,145.82,145.79,6.859]
[1724949320506,6.8568,145.84,145.79,6.859]
[1724949321329,6.8573,145.83,145.79,6.859]
[1724949322225,31.77068109,145.86,145.8,16.5533]
[1724949322429,6.8563,145.85,145.81,6.8582]
[1724949322930,6.8555,145.87,145.82,13.282]
[1724949324051,6.8555,145.87,145.83,6.8572]
[1724949324220,258.0,145.93,145.82,6.4243]
[1724949324529,6.8548,145.89,145.84,6.8567]
[1724949325028,31.77068109,145.92,145.82,6.4243]
[1724949325224,31.77068109,145.92,145.87,15.9917]
[1724949325533,31.27068109,145.92,145.87,15.9917]
[1724949326330,6.8546,145.89,145.87,15.9917]
[1724949326830,45.12549,145.88,145.87,15.9917]
[1724949327919,52.10588,145.88,145.87,15.9917]
[1724949328129,6.8565,145.85,145.83,16.3817]
[1724949328822,6.856,145.86,145.83,16.3817]
[1724949329018,0.12549,145.85,145.83,16.3817]
[1724949329220,6.98189,145.85,145.83,16.3817]
[1724949329733,0.12549,145.85,145.83,16.3817]
[1724949330313,0.25098,145.85,145.83,16.3817]
[1724949331039,7.10728,145.85,145.83,16.3817]
[1724949331237,45.0,145.84,145.83,16.3817]
[1724949331441,45.25098,145.84,145.83,16.3817]
[1724949332735,52.10778,145.84,145.83,16.3817]
[1724949333112,45.25098,145.84,145.83,16.3817]
[1724949334938,52.10778,145.84,145.83,16.3817]
[1724949336138,6.8572,145.83,145.8,16.1494]
[1724949336433,6.8582,145.81,145.79,6.1226]
[1724949336645,0.25098,145.8,145.79,6.1226]
[1724949336812,45.25098,145.8,145.77,16.1494]
[1724949337015,6.8595,145.79,145.77,16.1494]
[1724949337216,45.25098,145.78,145.77,16.1494]
[1724949338629,31.77068109,145.82,145.77,16.1494]
[1724949338930,7.10958,145.81,145.77,16.1494]
[1724949339135,51.8588,145.8,145.77,16.1494]
[1724949339342,0.12549,145.79,145.77,16.1494]
[1724949343154,45.0,145.8,145.77,16.1494]
[1724949343332,31.77068109,145.86,145.77,16.1494]
[1724949343526,20.0,145.85,145.77,16.1494]
[1724949344254,6.8574,145.83,145.79,6.8588]
[1724949344749,20.0,145.85,145.78,6.8592]
[1724949344750,52.10878,145.82,145.78,6.8592]
[1724949345056,6.8582,145.81,145.77,23.0094]
[1724949345348,45.25098,145.8,145.78,6.8596]
[1724949345545,45.25098,145.8,145.77,23.0094]
[1724949346228,6.8578,145.82,145.78,6.8595]
[1724949346451,20.0,145.85,145.79,6.859]
[1724949346648,45.0,145.84,145.82,6.8576]
[1724949346853,6.8562,145.86,145.82,6.8576]
[1724949347146,6.8563,145.85,145.81,12.9639]
[1724949347739,6.8559,145.86,145.82,6.8577]
[1724949349042,0.12549,145.85,145.82,6.8577]
[1724949349350,6.8554,145.87,145.83,22.5158]
[1724949349526,31.77068109,145.9,145.84,6.8567]
[1724949349731,6.8549,145.88,145.84,6.8567]
[1724949350731,45.0,145.87,145.84,6.8567]
[1724949351231,0.25098,145.86,145.84,6.8567]
[1724949352041,0.25098,145.86,145.83,22.5158]
[1724949352228,7.10688,145.86,145.83,15.6586]
[1724949352428,0.25098,145.86,145.83,15.6586]
[1724949353029,6.8564,145.85,145.83,15.6586]
[1724949353234,0.12549,145.84,145.83,15.6586]
[1724949354354,45.0,145.85,145.83,15.6586]
[1724949354850,51.8564,145.85,145.83,15.6586]
[1724949355454,45.0,145.85,145.83,15.6586]
[1724949355959,51.8564,145.85,145.83,15.6586]
[1724949356160,0.12549,145.84,145.83,15.6586]
[1724949356739,6.98229,145.84,145.83,15.6586]
[1724949356963,52.10778,145.84,145.81,6.1059]
[1724949357137,7.10778,145.84,145.81,6.1059]
[1724949357458,45.0,145.83,145.81,6.1059]
[1724949357765,0.12549,145.82,145.81,6.1059]
[1724949358864,0.12549,145.82,145.79,15.25]
[1724949358865,0.25098,145.82,145.79,15.25]
[1724949359041,32.02166109,145.82,145.79,15.25]
[1724949359361,45.0,145.81,145.79,15.25]
[1724949359658,0.25098,145.8,145.79,15.25]
[1724949359864,7.10968,145.8,145.76,16.6459]
[1724949360065,45.0,145.79,145.76,16.6459]
[1724949360361,0.12549,145.78,145.76,16.6459]
[1724949360752,0.25098,145.78,145.76,16.6459]
[1724949361360,45.0,145.79,145.76,23.5064]
[1724949361545,6.98419,145.8,145.76,23.5064]
[1724949361746,0.25098,145.79,145.76,23.5064]
[1724949362276,6.8569,145.84,145.76,16.6459]
[1724949362573,31.77068109,145.86,145.76,16.6459]
[1724949362574,6.8559,145.86,145.81,6.8581]
[1724949363746,45.25098,145.85,145.81,6.8581]
[1724949363946,0.12549,145.85,145.81,6.8581]
[1724949364204,0.12549,145.85,145.79,6.8589]
[1724949364359,6.8572,145.84,145.79,6.8589]
[1724949364549,0.12549,145.83,145.79,6.8589]
[1724949364960,0.12549,145.83,145.8,6.8585]
[1724949365273,45.25098,145.83,145.8,6.8585]
[1724949367652,45.25098,145.83,145.79,6.859]
[1724949368268,0.25098,145.83,145.78,16.0289]
[1724949368467,45.25098,145.84,145.78,16.0289]
[1724949368669,45.25098,145.84,145.81,6.8581]
[1724949368968,45.25098,145.84,145.8,6.8585]
[1724949369149,48.90708109,145.89,145.78,16.0289]
[1724949369479,6.8554,145.87,145.83,6.8572]
[1724949369867,6.8554,145.87,145.82,6.8576]
[1724949370252,6.8554,145.87,145.83,6.8572]
[1724949370571,0.12549,145.86,145.83,6.8572]
[1724949370770,45.25098,145.86,145.83,6.8572]
[1724949370971,0.25098,145.86,145.84,6.8567]
[1724949371148,0.12549,145.86,145.84,16.3501]
[1724949371969,45.12549,145.87,145.84,23.2069]
[1724949372165,0.12549,145.87,145.84,23.2069]
[1724949372580,6.854,145.9,145.86,6.8557]
[1724949373277,6.854,145.9,145.85,6.8562]
[1724949373853,6.8536,145.91,145.86,6.8558]
[1724949374054,6.8531,145.92,145.84,16.3501]
[1724949374578,6.8535,145.91,145.84,16.3501]
[1724949374879,6.854,145.9,145.84,16.3501]
[1724949375253,0.12549,145.89,145.84,16.3501]
[1724949376868,0.12549,145.89,145.86,6.8555]
[1724949377069,6.97989,145.89,145.85,6.8561]
[1724949377274,6.8556,145.87,145.84,16.3501]
[1724949377478,7.10688,145.86,145.84,16.3501]
[1724949377783,6.98139,145.86,145.83,6.5734]
[1724949378355,45.12549,145.85,145.83,6.5734]
[1724949378552,0.12549,145.84,145.83,6.5734]
[1724949378758,0.12549,145.85,145.83,6.5734]
[1724949378980,45.12549,145.86,145.83,6.5734]
[1724949379455,6.98209,145.85,145.81,22.9884]
[1724949379659,0.12549,145.84,145.81,22.9884]
[1724949380064,6.8559,145.86,145.82,6.8576]
[1724949380470,0.12549,145.87,145.83,6.8571]
[1724949380676,45.25098,145.87,145.83,6.8571]